{"text_format":"1","workbook":"xlsx","n_sheets":3,"sheets":["Hinweis zum Datenschutz","Erhebungsbogen","Erläuterungen"],"not_rendered":{"charts":0,"images":1,"macros":1,"external_links":1,"defined_names":107,"comments":0,"pivot_tables":0},"unopened":[],"bounds":{"document_bytes":16777216,"sheet_cells":100000,"rows_first":2000,"rows_last":500,"rows_between":2000,"halvings":0,"cell_chars":16384,"cell_head_chars":4096},"cells_cut":0,"cells_raw":0,"read":"whole","date_system":"1900"}

{"sheet":"Hinweis zum Datenschutz","index":0,"n_rows":5,"n_cols":2,"rows_kept":5,"cut":false,"hidden":false,"merged":[]}
[]
[null,"Für uns ist es selbstverständlich, dass wir Ihre Daten absolut vertraulich behandeln und nicht an "]
[null,"Dritte weitergeben. Dennoch möchten wir Sie gem. Art. 21 der Datenschutz-Grundverordnung"]
[null,"(DSGVO) auf Ihr Widerspruchsrecht und weitere Rechte hinweisen. Über den grauen Button rechts "]
[null,"kommen Sie zum Erhebungsbogen den Sie uns auch per Mail zukommen lassen können."]

{"sheet":"Erhebungsbogen","index":1,"n_rows":385,"n_cols":9,"rows_kept":385,"cut":false,"hidden":false,"merged":[[0,0,0,3],[1,0,1,3],[2,0,2,3],[311,2,311,3],[304,1,304,5],[305,1,305,5],[310,2,310,3],[308,2,308,3],[16,2,16,3],[17,2,17,3],[52,4,52,5],[52,1,52,2],[51,1,51,2],[100,0,101,0],[21,0,22,0],[30,0,31,0],[62,0,63,0],[60,2,60,3],[21,1,22,1],[30,1,31,1],[13,2,13,3],[14,2,14,3],[15,2,15,3],[10,2,10,3],[11,2,11,3],[12,2,12,3],[307,2,307,3],[102,1,102,2],[21,2,22,3],[54,1,54,2],[62,1,63,2],[53,1,53,2],[30,2,31,2],[93,1,93,2],[290,4,290,5],[292,4,292,5],[287,4,287,5],[306,2,306,3],[66,1,66,2],[71,1,71,2],[284,1,284,3],[100,1,101,2],[95,1,95,2],[94,1,94,2],[70,1,70,2]]}
["Erhebungsbogen Friseurhandwerk NRW",null,null,null,"Dateiname:","FR","C:\\Referat 2\\7-Projekte\\004-Betriebsvergleiche-NRW\\6-Produkte\\80-Vorlagen\\08-Friseur\\EB_Friseur_2020.xlsm"]
[{"$f":"CONCATENATE(\"Berichtsjahr  \",C10)","v":"Berichtsjahr  2023"}]
["spätester Abgabetermin: 30.09.2024"]
[]
[]
["1. ","Allgemeine Angaben"]
["1.01","Auswertungsnummer (wird von der LGH eingetragen)"]
["1.02","Wünschen Sie eine Unternehmensanalyse? ",null,"Ja = J, Nein = N"]
[null,"BV Ja Nein","J"]
["1.03","Berichtsjahr",2023]
["1.04","Ansprechpartner"]
["1.05","In Firma"]
["1.06","Straße"]
["1.07","Plz"]
["1.08","Ort"]
["1.09","Telefon"]
["1.10","E-Mail"]
["1.11","Berater"]
[null,"Erfassungsperiode   (Jahr=0, Quartal = 1, Monat = 2)",0]
[null,{"$f":"IF(OR(ER_ErfassungsTyp=1,ER_ErfassungsTyp=2),\"welches Quartal bzw. welcher Monat?\",\"\")","v":""},{"$f":"IF(ER_ErfassungsTyp=0,0,\"\")","v":0}]
[]
["2.","Betriebsstruktur","1 = Einzelunternehmen,     \n2 = GbR,    \n3 = GmbH, "]
[]
["2.01","Rechtsform des Betriebes","4 = Sonstige"]
["2.02","Anzahl der eigenen Salons (inkl. Filialbetriebe)"]
["2.03","Gemietete Salonfläche","qm"]
["2.04","Salonfläche im Eigentum                      ","qm"]
["2.05","Wenn Eigentum, dann ortsübliche Miete je qm (ohne Nebenkosten)   "," €/qm"]
[]
[]
["3.","Angaben zur Beschäftigtenstruktur"]
[]
[null,"Zahl der im Jahr beschäftigten Arbeitskräfte"]
[null,"(12 Monate Beschäftigung je Arbeitskraft = 1,00 Beschäftigter, 1 Monat Beschäftigung = 1/12 Beschäftigter)",null,"Anzahl der Beschäftigten"]
[null,null,null,null,null,null,"Normale Stunden pro Woche",39.5]
["3.01","Tätiger Inhaber (auch GmbH Gesellschafter-Geschäftsführer)",null,null,null,null,"Vorgaben. Std. pro Woche Inh.",39.5]
["3.02","handwerklich tätig",null,"Std./Woche",null,null,"Bewerteter Inhaber fachlich",{"$f":"IF(D36=0,0,IF(C37+C38>0,(C37/(C37+C38))*$D$36,H36/H35))","v":0}]
["3.03","kaufmännisch/organisatorisch tätig",null,"Std./Woche"]
[null,"Fachliche Arbeitnehmer","Stunden/Woche","Anzahl"]
["3.04","Arbeitnehmer mit:   ",39.5,null,null,null,null,{"$f":"IF(D40=0,0,C40*D40/$H$35)","v":0}]
["3.05","Arbeitnehmer mit:   ",32,null,null,null,null,{"$f":"IF(D41=0,0,C41*D41/$H$35)","v":0}]
["3.06","Arbeitnehmer mit:   ",24,null,null,null,null,{"$f":"IF(D42=0,0,C42*D42/$H$35)","v":0}]
["3.07","Arbeitnehmer mit:   ",16,null,null,null,null,{"$f":"IF(D43=0,0,C43*D43/$H$35)","v":0}]
["3.08","Arbeitnehmer mit:   ",8,null,null,null,null,{"$f":"IF(D44=0,0,C44*D44/$H$35)","v":0}]
["3.09","Fachliche Lehrlinge",null,null,null,null,0.33,{"$f":"D45*G45","v":0}]
["3.10","Teilzeitkräfte\n(nicht bei den Fachlichen Arbeitnehmern erfasst)"]
["3.11","Gesamte bezahlte Stunden der Teilzeitkräfte ",null,null,null,null,null,{"$f":"D47/(H35*52)","v":0}]
["3.12","pandemiebedingte Kurzarbeitsstunden"]
[]
["4.","Sonstige Angaben"]
[null,"Bedienfälle"]
["4.01","Öffnungstage pro Woche"]
["4.02","Anzahl der Kunden (Kundenbesuche) pro Jahr "]
[null,"Anzahl der Kunden pro Jahr im Herrensalon",null,0]
["4.03","Zahl der Bedienungsplätze"]
[null,"Entnahmen / Einlagen"]
["4.04","Privatentnahmen (einschließlich Einkommenssteuer)"]
["4.05","Einlagen"]
[null,"kalkulatorischer Unternehmerlohn",null,0]
[]
[null,"\nErgänzende Kommentare bzw. Angaben?                                                                Im rechten Feld haben Sie die Gelegenheit, einige kurze ergänzende Angaben zu machen. "]
[]
["5.","Angaben zur Gewinn- und Verlustrechnung"]
[]
[]
[null,"Erträge"]
[null,"Die folgenden Angaben sind grundsätzlich als Nettobeträge einzutragen. \nSollten Sie eine Gewinnermittlung nach § 4 Abs. 3 EStG vornehmen, füllen Sie \ndie entsprechend gekennzeichneten Felder bitte zusätzlich aus.",null,"€"]
["5.01","Umsatzerlöse Handwerk"]
[null,"Umsatz im Herrensalon",null,0,null,{"$f":"ER_Umsatz_Damen+ER_Umsatz_Herren+ER_Umsatz_Verkauf","v":0},"Betriebsleistung (Umsatz Handwerk + Verkauf)"]
["5.02","Umsatzerlöse Verkauf",null,null,null,{"$f":"IF(ER_Umsatz_Damen+ER_Umsatz_Herren+ER_Umsatz_Verkauf=0,0,IF(ER_Umsatz_Verkauf=0,0,ER_Umsatz_Verkauf*100/(ER_Umsatz_Damen+ER_Umsatz_Herren+ER_Umsatz_Verkauf)))","v":0},"% Verkauf von Betriebsleistung"]
["5.03","Sonstige betriebliche Erträge (Erlöse aus Anlagenverkäufen, Steuererstattungen usw.)"]
["5.04","Umsatzsteuer \n(nur auszufüllen, wenn Gewinnermittlung nach § 4 Abs. 3 EStG erfolgt)"]
["5.05","Verlust aus der GuV-Rechnung"]
[null,"= Summe aller Ertragsseite",null,{"$f":"SUM(D68:D73)","v":0}]
[null,"Aufwendungen",null,"€"]
["5.06","Aufwendungen für Roh-, Hilfs- und Betriebsstoffe und für bezogene Waren"]
["5.07","Personalaufwendungen"]
["5.08","Gehalt für GmbH-Geschäftsführer inkl. Sozialkosten"]
[null,"Sonstige betriebliche Aufwendungen"]
["5.09","Mieten für Grundstücke und Gebäude (ohne Fahrzeuge und Maschinen)"]
["5.10","Energiekosten (Strom, Gas, Wasser, Heizung)"]
["5.11","Sonstige Raumkosten (Reinigung und Instandhaltung)"]
["5.12","Versicherungen, Beiträge"]
["5.13","Weiterbildung und Information"]
["5.14","Fahrzeugkosten (ohne Abschreibungen und Leasinggebühren)  also Kfz-Versicherung, -Steuer, -Reparatur, -Treibstoff"]
["5.15","Werbung, Repräsentation, Bewirtung"]
["5.16","Instandhaltung und Reparatur Saloneinrichtung"]
["5.17","Abschreibungen         a) Abschreibung auf Gebäude"]
["5.18","                                 b) Abschreibungen auf Einrichtungen"]
["5.19","                                 c) Abschreibungen auf Kfz"]
["5.20","                                 d) Geringwertige Wirtschaftsgüter (Poolabschreibung)"]
["5.21","Zinsen für Fremdkapital, Kosten des Geldverkehrs"]
["5.22","Steuern"]
["5.23","Restliche Kosten                                                                \n(Porto, Telefon, Wäsche, Beratungskosten,  u.a.)"]
["5.24","Vorsteuer\n(nur auszufüllen, wenn Gewinnermittlung nach § 4 Abs. 3 EStG erfolgt)"]
["5.25","Umsatzsteuerzahlung\n(nur auszufüllen, wenn Gewinnermittlung nach § 4 Abs. 3 EStG erfolgt)"]
["5.26","Gewinn laut GuV-Rechnung"]
[null,"= Summe aller Aufwandsseite",null,{"$f":"SUM(D76:D97)","v":0}]
[]
[]
["6.","Angaben aus der Bilanz"]
[]
[null,"Die nachstehende Bilanzgliederung ist vereinfacht und auf das Wesentliche beschränkt. Bei der Aufgliederung der Bilanz ordnen Sie bitte weitergehende Untergliederungen diesen aufgeführten Bilanzpositionen sachlich zu."]
[null,"Aktiva"]
[null,"Anlagevermögen",null,null,null,1]
["6.01","Grundstücke und Gebäude"]
["6.02","Geschäftsausstattung"]
["6.03","Fahrzeuge"]
["6.04","Sonstiges Anlagevermögen"]
[null,"Umlaufvermögen"]
["6.05","Kasse, Bank"]
["6.06","Material- und Handelswarenbestand"]
["6.07","Sonstiges Umlaufvermögen"]
["6.08","Sonstige Aktiva"]
["6.09","Nicht durch Eigenkapital gedeckter Fehlbetrag"]
[null,"Summe Aktiva",null,{"$f":"SUM(D106:D109)+SUM(D111:D113)+SUM(D114:D115)","v":0}]
[null,"Passiva"]
["6.10",{"$f":"CONCATENATE(\"Eigenkapital am 31. 12. \",C10)","v":"Eigenkapital am 31. 12. 2023"}]
["6.11","Langfristiges Fremdkapital"]
[null,"Kurzfristiges Fremdkapital"]
["6.12","Rückstellungen"]
["6.13","Lieferantenverbindlichkeiten"]
["6.14","Kontokorrentverbindlichkeiten"]
["6.15","Sonstige kurzfristige Verbindlichkeiten"]
["6.16","Sonstige Passiva"]
[null,"Summe Passiva",null,{"$f":"SUM(D118:D119)+SUM(D121:D125)","v":0}]
[]
[]
[null,"Fertig mit der Eingabe?  Kontrollieren Sie hier Ihre Eingaben:"]
[]
[]
[]
[]
[]
[]
[]
[]
[]
[]
[]
[]
[]
[]
[]
[]
[]
[]
[]
[]
[]
[]
[]
[]
[]
[]
[]
[]
[]
[]
[]
[]
[]
[]
[]
[]
[]
[]
[]
[]
[]
[]
[]
[]
[]
[]
[]
[]
[]
[]
[]
[]
[]
[]
[]
[]
[]
[]
[]
[]
[]
[]
[]
[]
[]
[]
[]
[]
[]
[]
[]
[]
[]
[]
[]
[]
[]
[]
[]
[]
[]
[]
[]
[]
[]
[]
[]
[]
[]
[]
[]
[]
[]
[]
[]
[]
[]
[]
[]
[]
[]
[]
[]
[]
[]
[]
[]
[]
[]
[]
[]
[]
[]
[]
[]
[]
[]
[]
[]
[]
[]
[]
[]
[]
[]
[]
[]
[]
[]
[]
[]
[]
[]
[]
[]
[]
[]
[]
[]
[]
[]
[]
[]
[]
[]
[null,null,null,null,null,null,"Erzielter Umsatz",{"$f":"ER_Umsatz_Damen+ER_Umsatz_Herren+ER_Umsatz_Verkauf","v":0}]
[]
[]
[null,null,null,null,null,null,"Umsatz"]
[null,null,null,null,null,null,"von","bis","Größenklasse"]
[null,null,null,null,null,null,0,120000,1]
[null,null,null,null,null,null,120000,999999999,2]
[]
[]
[]
[null,"Kontrolldaten"]
[]
[null,"Größenklasse:",{"$f":"IF(AND(H275>G280,H275<=H280),I280,IF(AND(H275>G281,H275<=H281),I281,\"0\"))","v":"0"}]
[null,"Zahl der Beschäftigten unbewertet / bewertet",{"$f":"SUM($D$36:$D$46)","v":0},{"$f":"SUM(H37:H47)","v":0},{"$f":"IF(AND(C288=0,D291<>0),\"Beschäftigte fehlen!\",\" \")","v":" "}]
[]
[null,"Kontrolldaten zur  GuV ","Ertragsseite","Aufwandsseite","Differenz"]
[null,"Summe",{"$f":"D74","v":0},{"$f":"D98","v":0},{"$f":"IF(D291<>C291,G291,\" \")","v":" "},null,{"$f":"C291-D291","v":0}]
[null,"Kontrolldaten zur  Bilanz","Summe Aktiva","Summe Passiva","Differenz"]
[null,"Bilanzsummen",{"$f":"D116","v":0},{"$f":"D126","v":0},{"$f":"IF(D293<>C293,G293,\" \")","v":" "},null,{"$f":"C293-D293","v":0}]
[]
[]
[null,{"$f":"IF(C291=0,\"\",IF(SUM(D52:D54)+SUM(D26:D27)+D55=0,\"Keine Angaben zu Kundenzahl und Fläche möglich?!\",\"\"))","v":""}]
[]
[]
[]
[]
[]
[]
[]
[]
[null,"Hier können Sie die erfassten Daten automatisch  in einer Datei speichern. Wichtig dabei ist die Angabe des Verzeichnis und - wenn keine Betriebsnummer angegeben ist - die laufende Nummer !"]
[]
[null,"Branchenkürzel","FR"]
[null,"Berichtsjahr",{"$f":"C10","v":2023}]
[null,"Dateikennzeichnung oder laufende Nummer:",{"$f":"IF(ER_Betriebsnr>0,ER_Betriebsnr,\"\")","v":""}]
[null,"(Sie können Nummern oder Buchstaben vergeben. )"]
[null,"Verzeichnis","C:\\Eigene Dateien"]
[null,"Unter diesem Namen wird die Datei gespeichert:",{"$f":"CONCATENATE(C307,C308,C309)","v":"FR2023"}]
[]
[]
[]
[]
[]
[]
[]
[]
[]
[]
[]
[]
[]
[]
[]
[]
[]
[]
[]
[]
[]
[]
[]
[]
[]
[]
[]
[]
[]
[]
[]
[]
[]
[]
[]
[]
[]
[]
[]
[]
[]
[]
[]
[]
[]
[]
[]
[]
[]
[]
[]
[]
[]
[]
[]
[]
[]
[]
[]
[]
[]
[]
[]
[]
[]
[]
[]
[]
[]
[]
[null,"Kennzahlen:"]
[null,"Betriebsleistung_pro_Beschaeft",{"$f":"IF(ER_Beschaeftigte=0,0,ER_Betriebsleistung/ER_Beschaeftigte)","v":0}]
[null,"Rohgewinn_pro_Beschaeft",{"$f":"IF(ER_Beschaeftigte=0,0,(ER_Betriebsleistung-ER_Materialeinsatz)/ER_Beschaeftigte)","v":0}]

{"sheet":"Erläuterungen","index":2,"n_rows":157,"n_cols":6,"rows_kept":157,"cut":false,"hidden":false,"merged":[[157,1,157,7],[137,1,137,7],[149,1,149,7],[151,1,151,7],[134,1,134,7],[156,1,156,7],[143,1,143,7],[153,1,153,7],[147,1,147,7],[131,1,131,7],[132,1,132,7],[145,1,145,7],[123,1,123,7],[11,1,11,7],[99,1,99,7],[101,1,101,7],[14,1,14,7],[106,1,106,7],[116,1,116,7],[118,1,118,7],[110,1,110,7],[1,0,1,7],[6,1,6,7],[8,1,8,7],[9,1,9,7],[13,1,13,7]]}
[]
["Erläuterungen zum Ausfüllen des Erhebungsbogen"]
[]
["Der elektronische Erhebungsbogen soll Ihnen die Erfassung Ihrer Daten erleichtern."]
["In dieser Tabelle wollen wir Ihnen einige kurze Erläuterungen zum Ausfüllen geben:"]
[]
["1.","Der Erhebungsbogen ist so eingerichtet, dass Sie nur in den Eingabefeldern (weiße, umrahmte Felder) Angaben machen können."]
[]
["2.","Bitte benutzen Sie die Tabulatortaste, um in das nächste Eingabefeld zu gelangen."]
[null,"Achtung: Schließt man die Eingabe mit der \"Entertaste\" ab, springt der Kursor nur in die nächste Zelle unter der eingegebenen Zelle."]
[]
["3.","Über die Schaltflächen kommen Sie mit dem Kursor zum Anfang des gewählten Eingabebereiches."]
[]
["4.","Bitte überprüfen Sie nach Ihrer Eingabe die Daten auf Vollständigkeit. Dazu haben wir am Ende der Datei einen Kontrollbereich installiert, in dem die wichtigsten Zahlen dargestellt sind und Differenzen ausgewiesen werden. Auf Differenzen werden Sie durch rote Schrift hingewiesen. Auch notwendige fehlende Angaben werden angemerkt."]
["5.","Bitte speichern Sie Ihre Daten in dieser Exceldatei und senden diese an die Adresse Betriebsvergleiche@lgh.de"]
[null,"Sollten Sie uns die Daten lieber auf dem Postwege zukommen lassen wollen, senden Sie den "]
[null,"Ausdruck bitte an:"]
[]
[null,null,"Landes-Gewerbeförderungsstelle des "]
[null,null,"nordrhein-westfälischen Handwerks e.V."]
[null,null,"Postfach 10 34 12",null,null,"Auf'm Tetelberg 7"]
[null,null,"40025 Düsseldorf",null,null,"40221 Düsseldorf"]
[]
[]
[]
[]
[]
[]
[]
[]
[]
[]
[]
[]
[]
[]
[]
[]
[]
[]
[]
[]
[]
[]
[]
[]
[]
[]
[]
[]
[]
[]
[]
[]
[]
[]
[]
[]
[]
[]
[]
[]
[]
[]
[]
[]
[]
[]
[]
[]
[]
[]
[]
[]
[]
[]
[]
[]
[]
[]
[]
[]
[]
[]
[]
[]
[]
[]
[]
[]
[]
[]
[]
[]
[]
[]
[]
[null,"Angaben zu den Betriebsdaten"]
[]
[null,"Bitte geben Sie eine Auswertungsnummer nur dann an, wenn Sie bereits an einem Betriebsvergleich teilgenommen haben und Ihre Auswertungsnummer kennen. Im anderen Fall lassen Sie das Feld \"Auswertungsnummer\" bitte frei."]
[]
[null,"Falls Sie eine Unternehmensanalyse wünschen, benötigen wir Ihre Adresse und auch einen Ansprechpartner für eventuelle Rückfragen."]
[]
[]
[null,"Betriebsstruktur"]
[]
[null,"Geben Sie bitte bei der Rechtsform die entsprechende Zahl aus der aufgeführten Auflistung ein."]
[]
[null,"Kalkulatorische Miete"]
[]
[null,"Geben Sie bitte bei der Miete nur einen Wert an, wenn Ihr Betrieb oder ein Teil Ihre Betriebes auf eigenem Grundstück und in eigenen Räumen tätig ist. Anhaltswerte für eine angemessene Miete kann Ihnen möglicherweise ein Mietspiegel Ihrer Gemeinde geben. Andernfalls könnte Ihnen bei der Beantwortung dieser Frage ein ortsüblicher Mietpreis pro Quadratmeter und Ihre Quadratmeterzahl als Grundlage dienen."]
[]
[]
[]
[null,"Angaben zur Beschäftigtenstruktur"]
[]
[null,"Unter der Beschäftigtenstruktur möchten wir von Ihnen die Anzahl Ihrer Arbeitnehmer erfahren. Je genauer Sie hier die Angaben machen, desto besser sind die Aussagen bei Ihrer Unternehmensanalyse. Bei dem Ausfüllen beachten Sie bitte folgende Bewertungen:"]
[null,"Beispiel:"]
[null,"Ein Beschäftigter, der beschäftigt war von Januar bis Dezember mit einer Wochenarbeitszeit von 39,5 Stunden, ist zu bewerten mit 1. Ein Beschäftigter, der weniger als 12 Monate mit einer normalen Wochenarbeitszeit beschäftigt war, ist entsprechend geringer zu bewerten."]
[null,"1 Beschäftigter mit 12 Monaten = 1"]
[null,"1 Beschäftigter mit 5 Monaten = 5/12  = 0,42"]
[]
[null,"Teilzeitbeschäftigte"]
[null,"Die Stunden der Teilzeitbeschäftigten sind möglicherweise in der Lohnbuchhaltung enthalten. Wenn dies nicht der Fall ist, können Sie die Stunden anhand der folgenden Hilfsrechnung ermitteln:"]
[null,"Bezahlte Stunden pro Woche x bezahlte Wochen im Jahr = Stunden pro Jahr"]
[]
[null,"Beispiel: "]
[null,"1 Beschäftigter mit 5 Stunden in der Woche, der vom 01.01. bis zum 31.12. beschäftigt ist."]
[null,"=>  5 Stunden pro Woche x 52 Wochen = 5 x 52 = 260 Stunden im Jahr"]
[]
[null,"Inhaber"]
[null,"In vielen Fällen ist die normale Wochenarbeitszeit der Inhaber dauernd höher als die seiner Mitarbeiter. Geben Sie daher bitte die durchschnittliche Wochenarbeitszeit des Inhabers an."]
[null,"Für die Auswertung ist es wichtig, wie groß der Anteil der handwerklichen Tätigkeiten (=direkt verrechenbare Inhaberstunden) an seinen Gesamtstunden ist."]
[]
[]
[]
[null,"Sonstige Angaben"]
[null,"Bei den Privatentnahmen sind alle Entnahmen zu berücksichtigen, darunter fallen Entnahmen für die private Lebenshaltung, eigene soziale Versorgung und Privatsteuern. Dagegen zu rechnen sind die Einlagen."]
[]
[]
[]
[null,"Angaben zur Gewinn- und Verlustrechnung"]
[]
[null,"Die abgefragten Positionen der Gewinn- und Verlustrechnung entsprechen im betrieblichen Bereich weitestgehend den Kostenarten, die in den meisten Kontennachweisen aufgeführt sind. Bei anderen Kontenarten ordnen Sie diese bitte sachlich zu. Für die Betriebe, die statt eines kompletten Jahresabschlusses eine Gewinnermittlung nach § 4 Abs. 3 EStG erstellen sind in den Erhebungsbogen entsprechende Felder für die Vor- und Umsatzsteuer eingerichtet. Diese sollten auch nur von den betreffenden Betrieben ausgefüllt werden."]
[]
[]
[null,"Personalaufwand"]
[null,"Im Erhebungsbogen können Sie den gesamten Personalaufwand abzüglich des GmbH-Geschäftsführergehaltes in eine Position eintragen. Das Geschäftsführergehalt ist in der Regel in der GuV ausgewiesen und sollte hier separat eingetragen werden. Denken Sie daran die entsprechende Summe aus dem angegebenen Personalaufwand rauszurechnen."]
[null,"Abschreibungen"]
[null,"Bitte tragen Sie hier nur die normalen steuerlichen Abschreibungen ein. Die Ansparabschreibungen gehören in den außerordentlichen Aufwand."]
[null,"Sonstige betriebliche Erträge"]
[null,"In dieser Position können Sie Erträge zusammenfassen, die nichts mit der eigentlichen betrieblichen Tätigkeit bzw. mit dem eigentlichen betrieblichen Umsatz zu tun haben. Dazu gehören z. B. Erträge aus Anlagenverkäufen, Zinserträge, Erträge aus Auflösung von Rückstellungen, Steuererstattungen usw."]
[]
[]
[]
[null,"Angaben zur Bilanz"]
[null,"Die Bilanzgliederung ist vereinfacht und auf das Wesentliche beschränkt. Bei der Aufgliederung der Bilanz ordnen Sie bitte weitergehende Untergliederungen diesen aufgeführten Bilanzpositionen sachlich zu."]